bitfinex/quotes_SOLUSD_20220211
["timestamp","ask_amount","ask_price","bid_price","bid_amount"]
[1644577494357,15.95115872,106.19,106.13,46.15511203]
[1644577494557,15.95115872,106.19,106.13,40.37456247]
[1644577494956,14.1366,106.19,106.13,40.37456247]
[1644577496157,14.1366,106.19,106.13,45.08256247]
[1644577496557,14.1366,106.19,106.13,4.958]
[1644577496857,14.1386,106.17,106.13,4.708]
[1644577497060,14.1386,106.17,106.11,1.32254956]
[1644577497258,18.1676,106.17,106.1,1.32254956]
[1644577497459,14.1386,106.17,106.11,4.71]
[1644577498361,14.1386,106.17,106.11,4.96]
[1644577499260,14.1375,106.18,106.11,4.96]
[1644577499460,14.1375,106.18,106.11,6.30654956]
[1644577500762,14.1375,106.18,106.11,20.44404956]
[1644577501163,14.1375,106.18,106.11,6.30654956]
[1644577501366,14.1375,106.18,106.11,4.734]
[1644577501562,18.1675,106.18,106.11,0.024]
[1644577502363,18.1675,106.18,106.11,1.34654956]
[1644577502563,38.0306,106.19,106.12,6.03254956]
[1644577502763,23.8944,106.19,106.12,4.984]
[1644577502963,23.8944,106.19,106.12,6.30654956]
[1644577503364,23.8944,106.19,106.12,20.44204956]
[1644577503763,14.1358,106.2,106.12,20.44204956]
[1644577503967,22.7817,106.21,106.12,34.04204956]
[1644577504163,41.728,106.23,106.13,1.32254956]
[1644577504364,27.3158,106.23,106.14,14.1568]
[1644577504567,27.3158,106.23,106.15,0.024]
[1644577504764,14.1335,106.21,106.15,48.55660018]
[1644577504964,14.1335,106.21,106.15,48.53260018]
[1644577505363,14.1335,106.21,106.15,48.78260018]
[1644577507266,14.1335,106.21,106.15,53.49060018]
[1644577508667,14.1335,106.21,106.15,67.62340018]
[1644577508872,27.3158,106.23,106.15,67.62340018]
[1644577509069,14.2145,106.25,106.15,75.79340018]
[1644577509268,73.7498,106.26,106.16,23.3029]
[1644577509467,69.7198,106.26,106.17,0.024]
[1644577510270,17.11590318,106.25,106.17,0.024]
[1644577510470,69.7198,106.26,106.18,4.707]
[1644577510670,14.1292,106.24,106.18,4.707]
[1644577510871,14.1292,106.24,106.18,4.981]
[1644577511070,14.1292,106.24,106.18,4.957]
[1644577511972,14.1292,106.24,106.19,48.29008991]
[1644577512372,14.1292,106.24,106.19,48.54008991]
[1644577512771,14.1292,106.24,106.18,4.731]
[1644577512973,14.1292,106.24,106.18,4.707]
[1644577513777,14.1292,106.24,106.19,45.81565844]
[1644577513983,18.1592,106.24,106.19,45.81565844]
[1644577514881,14.1292,106.24,106.19,45.81565844]
[1644577515080,14.1292,106.24,106.18,4.731]
[1644577515282,14.1292,106.24,106.18,4.707]
[1644577516181,30.64942391,106.24,106.18,4.707]
[1644577516383,30.64942391,106.24,106.17,63.47905197]
[1644577516585,14.1292,106.24,106.17,63.72905197]
[1644577517588,24.2245,106.27,106.17,78.65160153]
[1644577517788,24.2245,106.27,106.18,24.89404956]
[1644577517987,24.2245,106.27,106.2,14.124]
[1644577518188,4.03,106.29,106.21,4.706]
[1644577518388,4.03,106.29,106.21,29.0736]
[1644577519005,4.03,106.29,106.22,48.19503886]
[1644577519406,4.03,106.29,106.22,48.44503886]
[1644577519605,4.03,106.29,106.22,48.19503886]
[1644577519804,14.1243,106.28,106.22,48.19503886]
[1644577520406,14.1243,106.28,106.22,48.44503886]
[1644577521207,14.1243,106.28,106.22,52.90003886]
[1644577521407,18.1568,106.27,106.22,48.19503886]
[1644577521809,14.1268,106.27,106.22,48.19503886]
[1644577522007,14.1268,106.27,106.19,4.705]
[1644577522711,14.1268,106.27,106.19,18.8322]
[1644577523011,17.83542047,106.27,106.2,42.96466507]
[1644577523211,4.029,106.26,106.18,28.5308]
[1644577523410,14.1307,106.24,106.18,23.8008]
[1644577524210,26.9236,106.26,106.19,34.32866861]
[1644577524416,22.8946,106.26,106.19,34.32866861]
[1644577524611,24.2765,106.27,106.19,34.32866861]
[1644577525009,24.2765,106.27,106.2,18.8318]
[1644577525410,24.2765,106.27,106.2,19.0818]
[1644577526811,38.4022,106.27,106.2,19.0818]
[1644577527015,37.4022,106.27,106.2,19.0818]
[1644577527214,37.4022,106.27,106.2,30.0488]
[1644577527813,51.3904,106.27,106.2,30.0488]
[1644577528615,37.4022,106.27,106.2,30.0488]
[1644577531317,18.1543,106.28,106.2,30.0488]
[1644577531518,18.1543,106.28,106.2,52.809]
[1644577532519,14.1243,106.28,106.2,52.809]
[1644577533118,14.1243,106.28,106.2,54.13154956]
[1644577533318,14.1243,106.28,106.2,52.809]
[1644577536225,14.1243,106.28,106.2,54.13154956]
[1644577536625,14.1243,106.28,106.2,52.809]
[1644577537426,4.03,106.27,106.2,48.103]
[1644577537644,18.1561,106.27,106.2,48.103]
[1644577537825,14.1261,106.27,106.2,37.136]
[1644577538827,30.306754,106.27,106.2,37.136]
[1644577539027,4.03,106.26,106.2,37.136]
[1644577539228,14.1282,106.25,106.2,22.7602]
[1644577539427,14.1282,106.25,106.19,34.32866861]
[1644577540629,14.1282,106.25,106.19,34.57866861]
[1644577541829,14.1282,106.25,106.2,4.707]
[1644577543331,14.1282,106.25,106.19,48.70636861]
[1644577545259,14.1268,106.26,106.19,48.70636861]
[1644577546656,14.1268,106.26,106.2,4.706]
[1644577546856,14.1268,106.26,106.2,19.0823]
[1644577547560,14.1268,106.26,106.2,18.8323]
[1644577548157,18.1568,106.26,106.2,14.1263]
[1644577548557,18.1568,106.26,106.2,14.3763]
[1644577549257,14.1268,106.26,106.2,14.3763]
[1644577549459,14.1268,106.26,106.19,40.35721817]
[1644577549658,18.1558,106.26,106.19,39.03466861]
[1644577550358,4.029,106.26,106.19,39.03466861]
[1644577550759,55.05921909,106.27,106.19,40.35721817]
[1644577550760,38.2978,106.27,106.19,40.35721817]
[1644577551162,38.2978,106.27,106.2,1.32254956]
[1644577551361,38.2978,106.27,106.21,18.8303]
[1644577551760,38.2978,106.27,106.21,19.0803]
[1644577553760,38.2978,106.27,106.21,14.1243]
[1644577553961,38.2978,106.27,106.21,14.3743]
[1644577554162,38.2978,106.27,106.2,39.0061]
[1644577555866,38.2978,106.27,106.2,39.2561]
[1644577557468,38.2978,106.27,106.2,39.0061]
[1644577557669,4.03,106.26,106.2,39.0061]
[1644577557870,18.1567,106.26,106.2,39.0061]
[1644577558070,5.80509375,106.25,106.2,24.8797]
[1644577558472,5.80509375,106.25,106.19,48.45636861]
[1644577559571,4.03,106.26,106.19,14.1277]
[1644577559770,14.128,106.25,106.19,14.1277]
[1644577560269,14.128,106.25,106.19,14.3777]
[1644577562573,14.128,106.25,106.19,19.0847]
[1644577563575,14.128,106.25,106.19,14.3777]
[1644577564978,14.128,106.25,106.19,0.25]
[1644577565179,14.128,106.25,106.18,20.43284956]
[1644577566080,38.2066,106.25,106.18,20.43284956]
[1644577566491,4.03,106.24,106.18,15.72584956]
[1644577566684,4.03,106.24,106.18,15.70184956]
[1644577566882,14.1303,106.23,106.18,15.70184956]
[1644577568183,14.1303,106.23,106.18,15.45184956]
[1644577568386,4.03,106.22,106.17,24.87324956]
[1644577568585,4.03,106.22,106.16,28.66514956]
[1644577568785,14.1334,106.21,106.16,28.64114956]
[1644577568986,14.1334,106.21,106.16,23.93414956]
[1644577569686,18.1624,106.21,106.16,23.93414956]
[1644577570087,18.1624,106.21,106.16,24.18414956]
[1644577570991,14.1334,106.21,106.16,24.18414956]
[1644577571513,14.1334,106.21,106.15,6.05454956]
[1644577571713,4.027,106.2,106.15,1.32254956]
[1644577571913,4.027,106.2,106.14,26.04864956]
[1644577572112,14.1355,106.19,106.14,26.02464956]
[1644577572313,14.1355,106.19,106.14,70.31930961]
[1644577572513,4.027,106.22,106.14,70.31930961]
[1644577572713,47.1097,106.24,106.15,4.708]
[1644577572914,24.29462708,106.25,106.16,24.77174956]
[1644577573115,14.1297,106.24,106.17,4.731]
[1644577573515,33.99338831,106.24,106.17,4.981]
[1644577573716,57.87508831,106.24,106.17,4.981]
[1644577574724,57.87508831,106.24,106.17,19.1117]
[1644577575818,71.65828831,106.24,106.17,19.1117]
[1644577576719,51.7946,106.24,106.18,43.00946501]
[1644577577120,38.0114,106.24,106.18,57.38876501]
[1644577578121,4.03,106.23,106.18,14.3793]
[1644577578320,18.16,106.23,106.18,14.3793]
[1644577578525,18.16,106.23,106.17,0.024]
[1644577578526,18.16,106.23,106.17,14.1545]
[1644577578721,18.16,106.23,106.16,0.024]
[1644577579120,18.16,106.23,106.14,41.69551031]
[1644577579121,2.87139941,106.21,106.14,41.69551031]
[1644577579321,14.1355,106.2,106.14,40.37296075]
[1644577579721,14.1355,106.2,106.14,40.34896075]
[1644577580124,14.1355,106.2,106.14,40.59896075]
[1644577580523,14.1355,106.2,106.14,45.30696075]
[1644577580722,14.1355,106.2,106.14,4.708]
[1644577581723,4.03,106.19,106.13,0.024]
[1644577581930,14.1389,106.18,106.11,67.39111425]
[1644577582124,14.1389,106.18,106.11,66.06856469]
[1644577582323,18.16822395,106.17,106.11,67.64111425]
[1644577582524,18.16822395,106.17,106.11,61.61056469]
[1644577582925,14.1389,106.17,106.11,0.274]
[1644577583326,14.1389,106.17,106.11,0.024]
[1644577583525,14.1389,106.17,106.1,25.10744956]
[1644577583731,14.1389,106.17,106.1,49.22054956]
[1644577584131,14.1389,106.17,106.1,88.2020198]
[1644577584327,42.6009,106.17,106.1,88.2020198]
[1644577585629,38.5709,106.17,106.1,88.4520198]
[1644577585929,38.5709,106.17,106.1,103.91366936]
[1644577587031,38.5709,106.17,106.1,103.66366936]
[1644577587431,38.5709,106.17,106.1,102.3411198]
[1644577588131,42.6009,106.17,106.11,4.71]
[1644577588432,60.7288,106.2,106.11,18.8479]
[1644577588631,14.1361,106.19,106.12,23.2269]
[1644577588832,14.1361,106.19,106.13,4.71]
[1644577589236,14.1361,106.19,106.13,4.96]
[1644577589432,14.1361,106.19,106.14,48.54877847]
[1644577589631,14.1361,106.19,106.14,55.72577847]
[1644577590833,26.7394,106.21,106.14,70.10997847]
[1644577591036,22.7074,106.21,106.14,70.13397847]
[1644577591936,36.8405,106.21,106.14,69.88397847]
[1644577592135,40.8735,106.21,106.14,69.88397847]
[1644577592535,40.8735,106.21,106.14,70.13397847]
[1644577593537,40.8735,106.21,106.14,69.88397847]
[1644577594337,40.8735,106.21,106.14,70.13397847]
[1644577595938,40.8735,106.21,106.14,69.88397847]
[1644577596138,40.8735,106.21,106.14,70.13397847]
[1644577596943,40.8735,106.21,106.14,55.99977847]
[1644577597138,40.8735,106.21,106.14,48.82277847]
[1644577597342,40.8735,106.21,106.14,72.55817847]
[1644577597739,0.79588338,106.2,106.14,0.024]
[1644577597938,14.1363,106.19,106.13,14.1598]
[1644577598139,18.1663,106.19,106.13,0.024]
[1644577598739,18.1663,106.19,106.13,42.4374386]
[1644577599445,18.1663,106.19,106.13,0.024]
[1644577599643,43.0447,106.19,106.13,0.024]
[1644577599843,45.42836791,106.19,106.11,44.17524956]
[1644577600441,45.42836791,106.19,106.11,78.77206729]
[1644577600642,45.42836791,106.19,106.11,30.03674956]
[1644577601043,59.02836791,106.19,106.11,28.7142]
[1644577602242,59.02836791,106.19,106.11,24.0062]
[1644577611183,59.02836791,106.19,106.12,4.71]
[1644577611384,52.6147,106.19,106.12,4.734]
[1644577612186,14.1363,106.19,106.12,16.36554956]
[1644577612388,36.8415,106.21,106.12,30.50304956]
[1644577612588,60.3929,106.21,106.14,43.27112271]
[1644577612786,60.3929,106.21,106.15,4.708]
[1644577612987,60.3929,106.21,106.14,48.25312271]
[1644577613686,60.3929,106.21,106.14,62.38742271]
[1644577614588,64.4229,106.21,106.14,62.38742271]
[1644577616692,60.3929,106.21,106.14,62.38742271]
[1644577620795,20.54496791,106.23,106.14,73.38797227]
[1644577620996,14.1313,106.23,106.17,14.1302]
[1644577621392,14.1313,106.23,106.17,25.9662]
[1644577621592,14.1313,106.23,106.18,36.656354]
[1644577622694,14.1313,106.23,106.18,50.786654]
[1644577628597,14.1313,106.23,106.17,14.1315]
[1644577628801,16.51496791,106.23,106.16,4.708]
[1644577629000,30.11496791,106.23,106.16,4.708]
[1644577629298,34.14496791,106.23,106.15,52.4372]
[1644577629711,34.14496791,106.23,106.16,45.26287428]
[1644577631700,37.19544262,106.23,106.16,45.26287428]
[1644577631903,34.81177471,106.23,106.16,45.26287428]
[1644577632806,31.7613,106.23,106.16,45.26287428]
[1644577633711,31.7613,106.23,106.14,4.708]
[1644577633712,34.14496791,106.23,106.14,4.708]
[1644577633912,1.33802708,106.22,106.12,1.32254956]
[1644577634110,17.63,106.21,106.11,4.708]
[1644577634310,14.1383,106.18,106.1,1.32254956]
[1644577634509,14.1383,106.18,106.11,48.42488032]
[1644577634708,30.55869499,106.22,106.11,62.56278032]
[1644577634908,40.437,106.22,106.12,22.8472]
[1644577635120,22.807,106.22,106.12,26.55341747]
[1644577635310,4.03,106.23,106.12,26.55341747]
[1644577635510,14.1331,106.21,106.13,2.38366791]
[1644577635909,14.1331,106.21,106.13,2.63366791]
[1644577636111,14.1331,106.21,106.13,3.95621747]
[1644577636809,14.1331,106.21,106.15,14.1334]
[1644577637010,14.1331,106.21,106.16,42.82229734]
[1644577638213,4.03,106.2,106.14,37.9995]
[1644577638414,20.54866791,106.2,106.14,37.9995]
[1644577638611,16.51866791,106.2,106.14,37.9995]
[1644577638811,14.135,106.2,106.14,37.9995]
[1644577639233,14.135,106.2,106.14,84.10718032]
[1644577640632,14.135,106.2,106.14,69.97288032]
[1644577642437,14.135,106.2,106.14,84.10768032]
[1644577642636,14.135,106.2,106.14,84.35768032]
[1644577642836,14.135,106.2,106.14,84.10768032]
[1644577643038,18.165,106.2,106.14,69.97288032]
[1644577643438,19.27670546,106.2,106.14,23.8652]
[1644577645738,18.165,106.2,106.14,23.8652]
[1644577647342,14.135,106.2,106.14,23.8652]
[1644577649343,14.135,106.2,106.14,23.8892]
[1644577655855,14.135,106.2,106.14,38.2742]
[1644577656055,14.135,106.2,106.14,38.0242]
[1644577656255,14.135,106.2,106.14,38.2742]
[1644577659458,14.135,106.2,106.15,4.708]
[1644577659660,14.135,106.2,106.15,4.732]
[1644577663363,18.165,106.2,106.15,4.732]
[1644577665766,14.135,106.2,106.15,4.732]
[1644577666770,14.135,106.2,106.15,0.024]
[1644577666971,14.135,106.2,106.14,38.0242]
[1644577668478,4.03,106.19,106.14,38.0242]
[1644577668678,18.1654,106.19,106.14,38.0002]
[1644577668881,14.1354,106.19,106.14,38.0002]
[1644577670179,57.18302708,106.22,106.14,38.0002]
[1644577670380,14.1342,106.2,106.15,4.732]
[1644577670580,14.1342,106.2,106.15,18.8655]
[1644577672582,12.72451547,106.2,106.15,18.8655]
[1644577673803,12.72451547,106.2,106.15,14.1575]
[1644577678319,23.9419,106.22,106.15,14.1575]
[1644577678517,18.1628,106.21,106.15,14.1575]
[1644577682819,14.1328,106.21,106.16,4.708]
[1644577683021,14.1328,106.21,106.17,36.09022376]
[1644577684223,14.1328,106.21,106.16,18.84]
[1644577685425,18.1628,106.21,106.16,18.84]
[1644577685627,18.1628,106.21,106.15,54.30651679]
[1644577688524,18.1628,106.21,106.15,14.1577]
[1644577688725,14.1355,106.19,106.15,0.024]
[1644577688927,14.1355,106.19,106.14,28.5732]
[1644577689130,4.027,106.18,106.14,23.8652]
[1644577689325,4.027,106.18,106.13,0.024]
[1644577689527,4.68984503,106.18,106.12,24.58174956]
[1644577689829,4.025,106.17,106.12,23.2832]
[1644577690326,4.025,106.17,106.12,0.024]
[1644577690530,18.1631,106.17,106.1,1.34654956]
[1644577690728,43.80966791,106.17,106.1,0.024]
[1644577691651,57.40966791,106.17,106.1,0.024]
[1644577692447,71.32346791,106.17,106.1,0.024]
[1644577694153,72.66149499,106.17,106.1,0.024]
[1644577694549,71.32346791,106.17,106.1,0.024]
[1644577694948,71.32346791,106.17,106.08,0.024]
[1644577697450,101.87972513,106.17,106.08,0.024]
[1644577697650,111.62649268,106.17,106.08,0.024]
[1644577697850,111.62649268,106.17,106.06,0.024]
[1644577698051,135.91379268,106.17,106.06,0.024]
[1644577698854,182.96379268,106.17,106.06,0.024]
[1644577699453,184.30181976,106.17,106.06,0.024]
[1644577700151,182.96379268,106.17,106.06,0.024]
[1644577700353,170.04,106.16,106.06,0.024]
[1644577700556,184.1926,106.13,106.04,4.711]
[1644577700753,184.1926,106.13,106.02,1.32254956]
[1644577700754,47.05,106.11,106.02,1.32254956]
[1644577700953,224.308145,106.1,106.0,4.712]
[1644577701153,222.1486,106.1,106.0,4.712]
[1644577701354,224.53226791,106.1,106.0,4.712]
[1644577701554,2.38366791,106.09,106.0,4.712]
[1644577701755,13.6,106.08,106.0,4.712]
[1644577701953,6.30077018,106.07,106.0,4.712]
[1644577702156,27.7565,106.06,106.0,4.712]
[1644577702556,30.14016791,106.06,106.0,4.712]
[1644577702755,27.7565,106.06,106.0,4.712]
[1644577704157,32.4715,106.06,105.97,72.20704516]
[1644577704358,46.6501,106.06,105.97,72.20704516]
[1644577704756,46.6501,106.06,105.97,67.49204516]
[1644577707262,41.9351,106.06,105.98,4.716]
[1644577707864,44.31876791,106.06,105.98,4.716]
[1644577708066,41.9351,106.06,105.98,4.716]
[1644577708462,16.54016791,106.06,105.98,4.716]
[1644577708663,4.716,106.12,105.99,15.98366791]
[1644577708865,18.6395,106.12,106.02,14.15]
[1644577709068,13.9235,106.12,106.03,4.713]
[1644577709266,20.69666791,106.11,105.99,4.713]
[1644577709464,15.5621864,106.1,105.99,4.713]
[1644577709665,15.5621864,106.1,105.97,69.25154516]
[1644577709666,47.1875,106.08,105.97,73.96554516]
[1644577709864,47.1875,106.08,105.97,69.25154516]
[1644577709865,18.315,106.07,105.97,69.25154516]
[1644577710064,6.02380631,106.06,105.98,4.715]
[1644577711566,14.1573,106.05,105.98,4.715]
[1644577711768,4.716,106.04,105.97,69.25154516]
[1644577712768,18.8741,106.04,105.97,83.40864516]
[1644577712967,14.1581,106.04,105.97,24.6752]
[1644577713168,27.7581,106.04,105.97,24.6752]
[1644577713370,27.7581,106.04,105.95,28.5851]
[1644577713571,7.09966791,106.03,105.92,51.5334]
[1644577713771,13.6,106.02,105.92,51.5334]
[1644577713971,4.718,106.01,105.93,45.61288042]
[1644577714169,15.98366791,106.02,105.93,45.61288042]
[1644577714370,13.6,106.02,105.94,4.718]
[1644577715174,13.6,106.02,105.94,4.968]
[1644577715576,18.8745,106.06,105.95,14.1601]
[1644577715771,13.6,106.05,105.96,29.3925]
[1644577716376,20.3721632,106.04,105.97,0.024]
[1644577716572,33.9721632,106.04,105.97,0.024]
[1644577717573,48.1323632,106.04,105.97,0.024]
[1644577718072,50.51603111,106.04,105.97,0.024]
[1644577719076,64.34923111,106.04,105.97,0.024]
[1644577720178,57.2495632,106.04,105.97,0.024]
[1644577720779,41.5934,106.04,105.97,0.024]
[1644577721779,61.47410882,106.04,105.97,0.024]
[1644577725510,4.716,106.03,105.97,0.024]
[1644577725709,27.7623,106.02,105.97,0.024]
[1644577728813,30.14596791,106.02,105.97,0.024]
[1644577729027,18.8803,106.01,105.94,0.024]
[1644577729215,32.4803,106.01,105.94,0.024]
[1644577729614,32.4803,106.01,105.94,38.03379782]
[1644577729816,32.4803,106.01,105.95,0.024]
[1644577730213,13.6,106.01,105.95,4.74]
[1644577732617,15.74063809,106.06,105.95,26.7886]
[1644577732817,19.0587,106.07,105.96,3.9801923]
[1644577733018,14.1576,106.06,105.97,23.2912]
[1644577733221,18.8736,106.06,105.98,0.024]
[1644577733419,18.21659476,106.05,105.98,48.25100576]
[1644577733621,18.8736,106.06,105.99,0.024]
[1644577733822,14.1576,106.06,105.99,0.024]
[1644577734320,56.2978,106.07,105.99,0.024]
[1644577734521,66.86427507,106.07,105.99,4.739]
[1644577734721,69.24794298,106.07,106.0,0.024]
[1644577734923,4.715,106.06,106.0,0.024]
[1644577735124,18.315,106.06,106.0,0.024]
[1644577735323,2.38366791,106.05,106.0,0.024]
[1644577735622,16.54246791,106.05,106.0,0.024]
[1644577735825,14.1588,106.05,106.0,0.024]
[1644577736425,16.54246791,106.05,106.0,0.024]
[1644577736829,14.1588,106.05,106.0,0.024]
[1644577737731,16.54246791,106.05,106.0,0.024]
[1644577738429,14.1588,106.05,106.0,0.024]
[1644577738631,16.54246791,106.05,106.0,0.024]
[1644577738828,4.715,106.04,106.0,0.024]
[1644577739030,14.1588,106.05,105.98,52.96700576]
[1644577739229,14.1588,106.05,105.99,0.024]
[1644577739928,28.4739,106.05,105.99,0.024]
[1644577741335,2.38366791,106.04,105.99,0.024]
[1644577741730,28.4739,106.05,105.99,0.024]
[1644577742131,30.85756791,106.05,105.99,0.024]
[1644577743532,4.716,106.04,105.99,0.024]
[1644577744033,30.85756791,106.05,105.99,0.024]
[1644577744533,28.4739,106.05,105.99,0.024]
[1644577745435,33.1899,106.05,105.99,0.024]
[1644577745836,42.0739,106.05,105.99,0.024]
[1644577748139,4.716,106.04,105.99,0.024]
[1644577748338,18.8751,106.04,105.98,48.25100576]
[1644577748740,18.8751,106.04,105.98,48.22700576]
[1644577749741,14.1591,106.04,105.98,48.22700576]
[1644577750844,18.8751,106.04,105.98,48.22700576]
[1644577753551,18.8751,106.04,105.97,42.1652]
[1644577753755,18.8751,106.04,105.97,37.4492]
[1644577754656,18.8751,106.04,105.98,39.41753838]
[1644577755155,18.8751,106.04,105.97,37.4492]
[1644577755355,32.4751,106.04,105.97,23.2912]
[1644577756258,6.30351764,106.03,105.97,23.2912]
[1644577756455,14.1608,106.02,105.97,23.2912]
[1644577756661,18.8768,106.02,105.97,23.2912]
[1644577760178,33.3793,106.02,105.97,23.2912]
[1644577760978,33.3793,106.02,105.97,0.024]
[1644577761179,33.3793,106.02,105.96,24.7557]
[1644577762578,28.6633,106.02,105.96,24.7557]
[1644577763682,33.3793,106.02,105.96,24.7557]
[1644577767687,28.6633,106.02,105.96,24.7557]
[1644577769990,33.3793,106.02,105.96,24.7557]
[1644577770191,14.1608,106.02,105.96,43.6326]
[1644577770389,38.4765,106.03,105.96,43.6326]
[1644577770589,14.1595,106.03,105.96,43.6566]
[1644577770790,13.6,106.04,105.96,43.9066]
[1644577770992,36.855,106.05,105.96,41.32426791]
[1644577771191,36.855,106.05,105.98,45.85230449]
[1644577771390,36.855,106.05,105.98,45.87630449]
[1644577772692,14.1574,106.04,105.98,60.03330449]
[1644577772893,14.1574,106.04,105.98,60.00930449]
[1644577774094,36.696,106.05,105.98,60.00930449]
[1644577774293,4.716,106.04,105.98,60.03330449]
[1644577774495,4.716,106.04,105.98,60.00930449]
[1644577775493,4.716,106.04,105.98,14.157]
[1644577775695,18.8731,106.04,105.97,37.3905]
[1644577775896,27.7571,106.04,105.97,23.2315]
[1644577776698,27.7571,106.04,105.97,71.49146902]
[1644577776898,27.7571,106.04,105.97,85.65106902]
[1644577777099,4.716,106.03,105.97,85.65106902]
[1644577777296,14.1594,106.02,105.97,85.65106902]
[1644577778196,14.1594,106.02,105.97,37.3911]
[1644577778596,14.1594,106.02,105.97,23.2315]
[1644577779999,28.0138,106.02,105.97,23.2315]
[1644577781200,14.1594,106.02,105.97,23.2315]
[1644577784104,28.2402,106.02,105.97,23.2315]
[1644577786400,28.2402,106.02,105.97,42.107]
[1644577786401,14.0808,106.02,105.97,42.107]
[1644577790414,28.24,106.02,105.97,23.2315]
[1644577790614,4.716,106.01,105.97,0.024]
[1644577790816,4.716,106.01,105.95,0.024]
[1644577791015,27.6823,106.01,105.94,0.024]
[1644577791915,14.1632,106.0,105.94,14.1872]
[1644577794127,18.8812,106.0,105.94,14.1872]
[1644577802741,14.1632,106.0,105.94,14.1872]
[1644577802945,27.6808,106.02,105.94,26.23486791]
[1644577803142,70.2223,106.04,105.94,48.88116791]
[1644577803143,4.718,106.04,105.94,48.88116791]
[1644577803343,4.718,106.04,105.95,0.024]
[1644577803645,4.718,106.04,105.98,43.62623262]
[1644577804645,18.871,106.06,105.99,14.156]
[1644577804945,18.871,106.06,105.99,38.9]
[1644577805646,14.155,106.06,105.99,43.615]
[1644577806247,14.155,106.06,105.99,43.865]
[1644577807050,14.155,106.06,105.99,43.615]
[1644577808351,4.715,106.05,105.99,43.615]
[1644577808751,14.1574,106.04,105.99,43.615]
[1644577810555,18.8734,106.04,105.99,43.615]
[1644577811752,18.8734,106.04,105.99,14.156]
[1644577811952,26.9834,106.04,105.97,0.024]
[1644577812152,40.5834,106.04,105.97,0.024]
[1644577812353,40.5834,106.04,105.95,0.024]
[1644577812952,40.5834,106.04,105.95,23.1636]
[1644577812953,23.8482,106.03,105.95,23.1636]
[1644577813155,14.1621,106.01,105.96,0.024]
[1644577813352,14.1621,106.01,105.95,23.1396]
[1644577813554,13.6,106.03,105.95,23.1396]
[1644577813753,4.716,106.04,105.95,30.4946]
[1644577813953,37.2009,106.05,105.98,14.1572]
[1644577814162,37.2009,106.05,105.98,56.43665528]
[1644577814559,4.716,106.04,105.98,56.43665528]
[1644577814761,4.716,106.04,105.98,14.1572]
[1644577815960,14.1576,106.03,105.98,14.1572]
[1644577817462,14.1576,106.03,105.97,37.722]
[1644577817865,14.1576,106.03,105.97,23.5635]
[1644577818268,14.1576,106.03,105.97,0.024]
[1644577818767,4.716,106.02,105.95,18.9012]
[1644577818989,14.1623,106.0,105.95,18.9012]
[1644577819188,14.1623,106.0,105.95,18.8772]
[1644577819388,14.1623,106.0,105.95,4.716]
[1644577821391,14.1623,106.0,105.94,83.46972237]
[1644577822893,14.1623,106.0,105.94,84.81047522]
[1644577823093,14.1623,106.0,105.95,4.718]
[1644577824398,18.8803,106.0,105.94,83.46972237]
[1644577824800,18.8803,106.0,105.94,38.2748]
[1644577832309,32.4803,106.0,105.94,38.2748]
[1644577833516,18.8803,106.0,105.94,38.2748]
[1644577834315,18.318,106.03,105.94,40.65846791]
[1644577834517,42.1355,106.03,105.95,1.36475285]
[1644577834716,23.8175,106.03,105.97,14.1586]